[Event "Indian Blitz Championship 2023"]
[Site "Nashik"]
[Date "2024.03.07"]
[Round "5.6"]
[White "Mrudul Dehankar"]
[Black "Aradhya, Garg"]
[Result "1/2-1/2"]
[ECO "D02"]
[WhiteElo "1981"]
[BlackElo "2385"]
[Annotator "TA"]
[PlyCount "124"]
[EventDate "2024.03.07"]
[EventType "blitz"]
[EventCountry "IND"]
[SourceTitle "playchess.com"]
[Source "ChessBase"]
[SourceQuality "1"]
[TimeControl "180+2"]

{[%evp 16,124,2,-8,8,1,10,0,19,12,4,-8,-4,-27,-18,-26,-19,-39,-11,-8,-8,-118,-112,-112,-117,-111,-104,-113,-94,-122,-93,-84,-90,-130,-131,-143,-132,-164,-93,-131,-124,-113,-109,-117,-109,-114,-105,-112,-113,-118,-99,-118,-112,-156,-147,-174,-163,-161,-111,-151,-78,-179,-179,-150,-66,-64,-55,-69,-55,-58,0,-102,-108,-114,-129,-129,-110,-139,0,0,0,0,0,0,0,0,0,-8,0,0,0,0,0,0,0,0,0,0,0,0,0,0,0,0,0,0,0,0,0,0,0]} 1. d4 {[%emt 0:00:02]} d5 {[%emt 0:00:01]} 2. Bf4 {[%emt 0:00:02]} c5 {[%emt 0:00:05]} 3. e3 {[%emt 0:00:03]} Nc6 {[%emt 0:00:01]} 4. Nf3 {[%emt 0:00:01]} Nf6 {[%emt 0:00:02]} 5. Nbd2 {[%emt 0:00:02]} Nh5 {[%emt 0:00:02]} 6. Be5 {[%emt 0:00:25]} e6 {[%emt 0:00:01]} 7. c3 {[%emt 0:00:08]} Nf6 {[%emt 0:00:40]} 8. Bf4 {[%emt 0:00:36]} Bd6 {[%emt 0:00:02]} 9. Ne5 {[%emt 0:00:18]} O-O {[%emt 0:00:06]} 10. Bd3 {[%emt 0:00:08]} Qc7 {[%emt 0:00:07]} 11. Ndf3 {[%emt 0:00:15]} Ne4 {[%emt 0:00:06]} 12. Nxc6 {[%emt 0:00:28]} Bxf4 {[%emt 0:00:02]} 13. exf4 {[%emt 0:00:23]} (13. Ne7+ $5 Qxe7 14. exf4 $11) 13... bxc6 {[%emt 0:00:02]} 14. g3 {[%emt 0:00:04]} cxd4 {[%emt 0:00:05]} 15. cxd4 {[%emt 0:00:10]} Qa5+ {[%emt 0:00:04]} 16. Kf1 {[%emt 0:00:12]} Rb8 {[%emt 0:00:01]} 17. Qe2 {[%emt 0:00:03][%cal Of1g2]} c5 {[%emt 0:00:10]} 18. dxc5 {[%emt 0:00:05]} (18. Kg2 $11 {hält das Gleichgewicht.}) 18... Nxc5 $17 {[%emt 0:00:18]} 19. Kg2 {[%emt 0:00:08]} Nxd3 {[%emt 0:00:08]} 20. Qxd3 {[%emt 0:00:02]} Rxb2 {[%emt 0:00:11][%cal Oh7h6]} 21. Qd4 {[%emt 0:00:04]} Qa3 {[%emt 0:00:27][%cal Ob2b4]} ({Finger weg von} 21... Rxa2 22. Rxa2 Qxa2 23. Ra1 $15) 22. Rhe1 {[%emt 0:00:02]} Bb7 {[%emt 0:00:03][%cal Ob2b4]} ({Auf keinen Fall} 22... Rxa2 23. Rxa2 Qxa2 24. Ra1 $15) 23. Re3 {[%emt 0:00:02]} Qb4 24. Qxb4 {[%emt 0:00:01]} Rxb4 {[%emt 0:00:02]} 25. Rd1 {[%emt 0:00:04]} d4 {[%emt 0:00:06]} 26. Ra3 {[%emt 0:00:00]} Rd8 {[%emt 0:00:09]} (26... f6 $19 27. g4 h5) 27. Kg1 {[%emt 0:00:02]} Bxf3 {[%emt 0:00:12]} 28. Rxf3 {[%emt 0:00:01][%mdl 4096] Endspiel. KRR-KRR} a5 {[%emt 0:00:01]} 29. Rd2 {[%emt 0:00:01]} g6 {[%emt 0:00:03]} 30. Rfd3 {[%emt 0:00:02]} Kg7 {[%emt 0:00:02]} 31. Kg2 {[%emt 0:00:01]} Kf6 {[%emt 0:00:01]} 32. Kf3 {[%emt 0:00:01]} e5 {[%emt 0:00:19]} 33. fxe5+ {[%emt 0:00:02]} Kxe5 {[%emt 0:00:01]} 34. Ra3 {[%emt 0:00:01]} a4 {[%emt 0:00:02]} 35. Rad3 {[%emt 0:00:02]} f5 {[%emt 0:00:05]} 36. Rc2 {[%emt 0:00:02]} Rd7 {[%emt 0:00:02]} (36... g5 $19 37. Kg2 Ke4) 37. Rc5+ {[%emt 0:00:02]} Kf6 {[%emt 0:00:01]} (37... Rd5 $142 38. Rc2 Rdb5) 38. h4 {[%emt 0:00:02]} (38. Ra5 $17 {kämpft weiter.}) 38... Rb2 $19 {[%emt 0:00:06]} 39. Rc6+ {[%emt 0:00:01]} Kg7 {[%emt 0:00:03]} (39... Ke5 $17 {[%cal Oe5d5] Und jetzt ...Kd5! wäre schön.} 40. Rc5+ Rd5) 40. Rc4 $1 $15 {[%emt 0:00:06][%csl LRa4,LRd4]} Rxa2 {[%emt 0:00:02] Droht ...Re7 und aus.} 41. Rcxd4 {[%emt 0:00:01]} Rxd4 {[%emt 0:00:01]} 42. Rxd4 {[%emt 0:00:01] KR-KR} a3 {[%emt 0:00:03]} (42... Kf6 $15) 43. Rd6 {[%emt 0:00:03]} (43. Rd7+ $1 $11 {bleibt in der Remisbreite.} Kh6 44. Ra7) 43... Rb2 $17 {[%emt 0:00:03]} 44. Ra6 {[%emt 0:00:02]} a2 {[%emt 0:00:01]} 45. Ke3 {[%emt 0:00:02]} Kf7 {[%emt 0:00:02]} 46. f3 {[%emt 0:00:02]} h6 {[%emt 0:00:08]} ({Günstiger ist} 46... Ke7 $17 {Weiss muss nun ...Kd8 beachten.} 47. Kf4 Rf2) 47. Kf4 $11 {[%emt 0:00:02] Die Stellung ist ausgeglichen.} Rb4+ {[%emt 0:00:01]} 48. Ke5 {[%emt 0:00:03]} Rb5+ {[%emt 0:00:02]} 49. Kf4 {[%emt 0:00:01]} Rb2 {[%emt 0:00:01]} 50. Ke5 {[%emt 0:00:01]} Re2+ {[%emt 0:00:01]} 51. Kf4 {[%emt 0:00:07]} Ke7 {[%emt 0:00:13]} 52. h5 $1 {[%emt 0:00:01]} gxh5 {[%emt 0:00:01]} 53. Kxf5 {[%emt 0:00:01]} Kf7 {[%emt 0:00:02]} 54. Ra7+ {[%emt 0:00:02]} Kf8 {[%emt 0:00:01]} 55. Kf6 {[%emt 0:00:01]} Ke8 {[%emt 0:00:02]} 56. Kg6 {[%emt 0:00:03]} Rf2 {[%emt 0:00:02]} 57. f4 {[%emt 0:00:01]} h4 {[%emt 0:00:02]} 58. gxh4 {[%emt 0:00:10]} Rxf4 {[%emt 0:00:11]} 59. h5 {[%emt 0:00:02]} Rf2 {[%emt 0:00:02]} 60. Kxh6 Rg2 {[%emt 0:00:02]} 61. Kh7 {[%emt 0:00:04]} Kf8 {[%emt 0:00:02][%cal Og2g7] [#] ...Rg7+! ist eine echte Drohung.} 62. Kh6 Ke8 {Weiß willigt fröhlich ins Remis ein.   Gewichteter Fehlerwert: Weiß=0.15 (sehr präzise) /Schwarz=0.13 (sehr präzise) .  Fehler:       	Weiß=3     	Schwarz=6     Ungenau:       	Weiß=4     	Schwarz=1     OK:         	Weiß=21    	Schwarz=15    Bester:       	Weiß=5     	Schwarz=3     Stark:        	Weiß=2     	---} 1/2-1/2

[Event "Indian Blitz Championship 2023"]
[Site "Nashik"]
[Date "2024.03.07"]
[Round "5.7"]
[White "Patil Harshal"]
[Black "Aakash Sharadchandra, Dalvi"]
[Result "0-1"]
[ECO "A12"]
[WhiteElo "2094"]
[BlackElo "2291"]
[Annotator "TA"]
[PlyCount "70"]
[EventDate "2024.03.07"]
[EventType "blitz"]
[EventCountry "IND"]
[SourceTitle "playchess.com"]
[Source "ChessBase"]
[SourceQuality "1"]
[TimeControl "180+2"]

{[%evp 21,70,-30,-8,-22,-25,-15,-19,-61,-64,-65,-56,-66,-67,-81,-62,-78,-50,-85,-77,-95,-88,-89,-87,-92,-91,-145,-143,-153,-146,-188,-183,-179,-167,-160,-160,-177,-172,-287,-275,-283,-317,-431,-281,-593,-393,-1184,-1035,-1303,-1277,-4806,-764]} 1. Nf3 {[%emt 0:00:03]} d5 {[%emt 0:00:02]} 2. g3 {[%emt 0:00:01]} c6 {[%emt 0:00:01]} 3. Bg2 {[%emt 0:00:00]} Bf5 {[%emt 0:00:01]} 4. O-O {[%emt 0:00:02]} e6 {[%emt 0:00:01]} 5. b3 {[%emt 0:00:01]} Nf6 {[%emt 0:00:02]} 6. Bb2 {[%emt 0:00:01]} a5 {[%emt 0:00:01]} 7. a3 {[%emt 0:00:02]} Be7 {[%emt 0:00:02]} 8. d3 {[%emt 0:00:01]} h6 {[%emt 0:00:01]} 9. Nbd2 {[%emt 0:00:01]} O-O {[%emt 0:00:01]} 10. c4 {[%emt 0:00:04]} Bh7 {[%emt 0:00:05]} 11. Ra2 {[%emt 0:00:02]} Nbd7 {[%emt 0:00:13]} 12. Bc3 {[%emt 0:00:11]} Qb6 {[%emt 0:00:02]} 13. Qc2 {[%emt 0:00:05]} c5 {[%emt 0:00:24]} 14. Rb1 {[%emt 0:01:44] The position is equal.} d4 {[%emt 0:00:02]} 15. Ba1 {[%emt 0:00:00][%cal Ob3b4]} e5 {[%emt 0:00:06]} 16. Ne1 {[%emt 0:00:07]} Qc7 {[%emt 0:00:11]} 17. Qc1 {[%emt 0:00:01]} Rfe8 {[%emt 0:00:05]} 18. Nc2 {[%emt 0:00:01]} Bf8 {[%emt 0:00:02]} 19. Rab2 {[%emt 0:00:02]} e4 {[%emt 0:00:01] White is on the road to losing.} 20. dxe4 {[%emt 0:00:05]} Nxe4 {[%emt 0:00:01]} 21. Nxe4 {[%emt 0:00:03]} Bxe4 {[%emt 0:00:01]} 22. Bxe4 {[%emt 0:00:11]} Rxe4 {[%emt 0:00:00]} 23. Ne1 {[%emt 0:00:00]} (23. Qd1 $142) 23... Rae8 $17 {[%emt 0:00:02]} 24. Qd1 {[%emt 0:00:01] [#]} Qe5 $1 {[%emt 0:00:07] Black has more active pieces.} 25. Nf3 {[%emt 0:00:01]} Qe6 {[%emt 0:00:03]} 26. b4 {[%emt 0:00:12]} axb4 {[%emt 0:00:10]} (26... cxb4 27. axb4 axb4 (27... Bxb4 28. Nxd4 Qxc4 29. e3 $17) 28. Nxd4 Qxc4 29. e3 $17) (26... Qxc4 27. bxc5 (27. Nd2 $2 Qxe2 28. Qf1 Ne5 $19) 27... Rxe2 (27... Nxc5 28. Rc2 $11) 28. Rc1 $11) 27. axb4 {[%emt 0:00:01] [#]} b6 {[%emt 0:00:07]} ({Don't play} 27... cxb4 28. Nxd4 Qxc4 29. e3 $17) ({Worse is} 27... Qxc4 28. bxc5 Nxc5 29. Rc2 $11) (27... Rxe2 28. Rxe2 Qxe2 29. Qxe2 Rxe2 30. bxc5) 28. bxc5 {[%emt 0:00:06]} bxc5 {[%emt 0:00:00]} 29. Kf1 {[%emt 0:00:08]} (29. Kg2 {keeps fighting.}) 29... Qxc4 $19 {[%emt 0:00:21]} 30. Rc2 {[%emt 0:00:23]} Qe6 {[%emt 0:00:02]} 31. Rb7 {[%emt 0:00:05]} Qd5 {[%emt 0:00:07]} 32. Rb5 {[%emt 0:00:03]} (32. Rb1 {nothing else works.}) 32... Ne5 {[%emt 0:00:05]} 33. Rbxc5 $2 {[%emt 0:00:04]} (33. Nxe5 R4xe5 34. Kg1) 33... Bxc5 {[%emt 0:00:02] Black is clearly winning.} 34. Rxc5 {[%emt 0:00:06]} Qxc5 {[%emt 0:00:02]} 35. Bxd4 {[%emt 0:00:00]} Rxd4 {[%emt 0:00:01] Weighted Error Value: White=0.97/Black=0.27 (precise) .  Mistake:       	White=4     	---        Inaccurate:     	White=3     	Black=3      OK:         	White=4     	Black=11} 0-1

[Event "Indian Blitz Championship 2023"]
[Site "Nashik"]
[Date "2024.03.07"]
[Round "5.8"]
[White "Moksh Amit Doshi"]
[Black "Sai Agni Jeevitesh, J."]
[Result "0-1"]
[ECO "D37"]
[WhiteElo "2353"]
[BlackElo "2285"]
[Annotator "TA"]
[PlyCount "68"]
[EventDate "2024.03.07"]
[EventType "blitz"]
[EventCountry "IND"]
[SourceTitle "playchess.com"]
[Source "ChessBase"]
[SourceQuality "1"]
[TimeControl "180+2"]

{[%evp 9,68,45,31,11,7,0,0,0,19,0,0,0,72,-27,54,-31,-38,-28,-44,-53,-15,0,27,0,38,39,33,-165,-165,-165,-135,-161,-154,-98,-106,-317,-286,-894,-353,-762,-743,-672,-426,-1481,-1441,-1861,-1275,-1337,-1326,-1710,-1366,-1920,-1881,-29980,-29981,-29981,-29982,-29979,-5431,-5841,-4120]} 1. d4 {[%emt 0:00:05]} d5 {[%emt 0:00:00]} 2. c4 {[%emt 0:00:01]} e6 {[%emt 0:00:01]} 3. Nf3 {[%emt 0:00:03]} h6 {[%emt 0:00:01]} 4. Nc3 {[%emt 0:00:04]} Nf6 {[%emt 0:00:01]} 5. Bf4 {[%emt 0:00:02]} Bd6 {[%emt 0:00:01]} 6. Qc1 {[%emt 0:00:01]} O-O {[%emt 0:00:31]} 7. g4 {[%emt 0:00:02]} Ne4 {[%emt 0:00:29]} (7... Nxg4 $6 8. Rg1 Bxf4 9. Qxf4 $14) 8. h4 {[%emt 0:00:03][%cal Of4h6] The position is equal.} c5 {[%emt 0:00:12]} 9. dxc5 {[%emt 0:00:24]} Bxc5 {[%emt 0:00:12]} 10. e3 {[%emt 0:00:16]} Nc6 {[%emt 0:00:01] [#]} (10... Bb4 $11 {remains equal.}) 11. g5 {[%emt 0:00:04]} (11. cxd5 $1 $16 exd5 12. Nxe4 dxe4 13. Qxc5 exf3 14. g5) 11... h5 {[%emt 0:00:03]} ({Better is} 11... Nxc3 $11 12. bxc3 e5 13. Nxe5 Nxe5 14. Bxe5 Re8 (14... hxg5 15. Qd2 $11)) 12. Nxe4 {[%emt 0:00:07]} ({White should try} 12. cxd5 $1 $14 exd5 13. Nxe4 dxe4 14. Qxc5 exf3 15. Rd1) 12... dxe4 $15 {[%emt 0:00:02]} 13. Nd2 {[%emt 0:00:01][%cal Oa2a3]} e5 {[%emt 0:00:30]} 14. Bg3 {[%emt 0:00:02][%cal Oa2a3]} Bf5 {[%emt 0:00:01]} 15. a3 {[%emt 0:00:05]} a5 {[%emt 0:00:03]} (15... Qb6 $5 16. Be2 a5 $11) 16. Be2 {[%emt 0:00:03]} g6 {[%emt 0:00:18]} 17. Qc2 {[%emt 0:00:01]} Qb6 {[%emt 0:00:10]} 18. O-O $2 {[%emt 0:00:20] [#]} (18. Nxe4 $14 {keeps the upper hand.} Bxe4 19. Qxe4) 18... Bxe3 $1 $19 {[%emt 0:00:07][%mdl 512] White must now prevent ...Nd4.} 19. Nxe4 {[%emt 0:00:05][%cal Oc4c5]} Nd4 {[%emt 0:00:08]} 20. Qd3 {[%emt 0:00:09]} Bf4 $36 {[%emt 0:00:36][%mdl 2048] Black is in control.} ({But not} 20... Qxb2 21. Bxh5 Bxf2+ 22. Bxf2 $17) 21. Bxf4 {[%emt 0:00:15]} exf4 {[%emt 0:00:01]} (21... Bxe4 {simplifies} 22. Qxe4 exf4 23. Bf3 Rad8) 22. c5 $2 {[%emt 0:00:02]} (22. Nf6+ $17 Qxf6 23. gxf6 Bxd3 24. Bxd3 Nf3+ 25. Kg2 Nxh4+ 26. Kh1) 22... Qxb2 {[%emt 0:00:03]} 23. Rae1 {[%emt 0:00:24]} (23. Bf3) 23... Rfd8 $2 {[%emt 0:00:04]} (23... Bxe4 24. Qxe4 Rfe8) 24. Nf6+ $2 {[%emt 0:00:09]} (24. Bf3) 24... Kg7 {[%emt 0:00:00]} 25. Qc4 {[%emt 0:00:01]} Be6 {[%emt 0:00:04] Active counter play!} 26. Qa4 {[%emt 0:00:40]} (26. Qd3 $142 Bf5 27. Qc4) 26... Bb3 {[%emt 0:00:02]} 27. Rb1 {[%emt 0:00:00]} Qxb1 {[%emt 0:00:01]} 28. Rxb1 {[%emt 0:00:03]} Bxa4 {[%emt 0:00:01]} 29. Bc4 {[%emt 0:00:04]} Bc6 {[%emt 0:00:04] ...Nf3+ would now be deadly.} 30. Kf1 {[%emt 0:00:03]} Nf3 {[%emt 0:00:01]} 31. Rc1 {[%emt 0:00:05]} Nd2+ {[%emt 0:00:03]} 32. Ke1 {[%emt 0:00:02]} Nxc4 {[%emt 0:00:01]} 33. Rxc4 {[%emt 0:00:01]} Rd3 {[%emt 0:00:03]} (33... Bf3 $142 34. Ne8+ Rxe8+ 35. Kd2 Re4 36. Rc1 Re2+ 37. Kc3 Rxf2 38. Ra1 Bc6 39. Rd1 Re2 (39... Rf3+ $2 40. Kb2 $19) 40. Rd6 f3 (40... Re3+ {gets mated.} 41. Kd2 Rae8 42. Rd4 f3 43. Kc2 Re2+ 44. Kc3 f2 45. Rf4 R8e3+ 46. Kc4 Rxa3 47. Kd4 Re8 48. Rg4 hxg4 49. Kc4 Re4#) 41. Kd3 Rae8 42. Kc4 f2 43. Rd1 R2e3 44. Rd3 f1=Q (44... f1=B 45. a4 R8e4+ 46. Kc3 Rxd3+ 47. Kb2 Re2+ 48. Kc1 Bxa4 49. Kb1 Rd1#) (44... R8e4+ {is a self mate.} 45. Kc3 f1=Q 46. Kc2 Qxd3+ 47. Kb2 Qd2+ 48. Kb1 Re1#) 45. Kb3 Qxd3+ 46. Kb2 Re2+ 47. Kc1 Qc2#) 34. Rxf4 {[%emt 0:00:02]} Rad8 {[%emt 0:00:00] Weighted Error Value: White=1.55/Black=0.91.  Loses game:     	White=2     	---        Mistake:       	White=4     	Black=3      Inaccurate:     	White=1     	Black=3      OK:         	White=9     	Black=3      Best:        	---       	Black=4      Brilliant:      	---       	Black=1} 0-1

[Event "Indian Blitz Championship 2023"]
[Site "Nashik"]
[Date "2024.03.07"]
[Round "5.9"]
[White "Dinesh Rajan M"]
[Black "Arpita, Mukherjee"]
[Result "1-0"]
[ECO "B90"]
[WhiteElo "1948"]
[BlackElo "2221"]
[Annotator "RC"]
[PlyCount "51"]
[EventDate "2024.03.07"]
[EventType "blitz"]
[EventCountry "IND"]
[SourceTitle "playchess.com"]
[Source "ChessBase"]
[SourceQuality "1"]
[TimeControl "180+2"]

1. e4 {[%emt 0:00:02]} c5 {[%emt 0:00:00]} 2. Nf3 {[%emt 0:00:01]} d6 {[%emt 0:00:02]} 3. d4 {[%emt 0:00:00]} cxd4 {[%emt 0:00:02]} 4. Nxd4 {[%emt 0:00:01]} Nf6 {[%emt 0:00:02]} 5. Nc3 {[%emt 0:00:01]} a6 {[%emt 0:00:01]} 6. Be3 {[%emt 0:00:01]} e5 {[%emt 0:00:01]} 7. Nf3 {[%emt 0:00:01]} Be7 {[%emt 0:00:08]} 8. Nd2 {[%emt 0:00:01]} b5 {[%emt 0:00:25]} 9. a4 {[%emt 0:00:02]} b4 {[%emt 0:00:02]} 10. Nd5 {[%emt 0:00:01]} Nxd5 {[%emt 0:00:01]} 11. exd5 {[%emt 0:00:01]} a5 {[%emt 0:00:08]} 12. Bb5+ {[%emt 0:00:01]} Nd7 {[%emt 0:00:12]} 13. Nc4 {[%emt 0:00:02]} O-O {[%emt 0:00:03]} 14. O-O {[%emt 0:00:03]} Ba6 {[%emt 0:00:18]} 15. b3 {[%emt 0:00:18]} f5 {[%emt 0:00:32]} 16. f3 {[%emt 0:00:01]} Kh8 {[%emt 0:00:14]} 17. Qd3 {[%emt 0:00:05]} Nf6 {[%emt 0:00:39]} 18. Bxa6 {[%emt 0:00:07]} Rxa6 {[%emt 0:00:03]} 19. Nxe5 {[%emt 0:00:02]} dxe5 {[%emt 0:00:07]} 20. Qxa6 {[%emt 0:00:01]} Nxd5 {[%emt 0:00:04]} 21. Rad1 {[%emt 0:00:04]} Qd7 {[%emt 0:00:09]} 22. Qxa5 {[%emt 0:00:18]} Rd8 {[%emt 0:00:01]} 23. Bb6 {[%emt 0:00:07]} Nxb6 {[%emt 0:00:12]} 24. Rxd7 {[%emt 0:00:01]} Nxd7 {[%emt 0:00:01]} 25. Rd1 {[%emt 0:00:01]} Kg8 {[%emt 0:00:09]} 26. Qc7 {[%emt 0:00:02]} 1-0

[Event "Indian Blitz Championship 2023"]
[Site "Nashik"]
[Date "2024.03.07"]
[Round "5.10"]
[White "Garv Rai"]
[Black "Ghosh, Diptayan"]
[Result "0-1"]
[ECO "D02"]
[WhiteElo "2241"]
[BlackElo "2559"]
[Annotator "TA"]
[PlyCount "112"]
[EventDate "2024.03.07"]
[EventType "blitz"]
[EventCountry "IND"]
[SourceTitle "playchess.com"]
[Source "ChessBase"]
[SourceQuality "1"]
[TimeControl "180+2"]

{[%evp 41,112,9,22,-8,6,0,50,12,13,0,60,0,71,55,100,0,67,-114,39,-15,-15,-15,-15,-15,-15,-20,-15,-15,0,0,0,-506,-485,-498,-504,-597,-588,-725,-686,-762,-765,-714,-696,-1631,-1631,-1611,-1610,-1630,-1631,-1591,-1591,-1588,-1584,-1559,-1532,-1374,-1260,-29963,-1137,-12842,-6460,-5218,-1590,-29981,-29982,-29983,-29984,-29986,-29987,-29988,-29987,-29988,-29989]} 1. d4 {[%emt 0:00:02]} Nf6 {[%emt 0:00:01]} 2. Bf4 {[%emt 0:00:01]} d5 {[%emt 0:00:01]} 3. e3 {[%emt 0:00:02]} c5 {[%emt 0:00:01]} 4. Nf3 {[%emt 0:00:01]} Nc6 {[%emt 0:00:01]} 5. Nbd2 {[%emt 0:00:01]} Bg4 {[%emt 0:00:01]} 6. h3 {[%emt 0:00:02]} Bh5 {[%emt 0:00:02]} 7. g4 {[%emt 0:00:01]} Bg6 {[%emt 0:00:01]} 8. Bb5 {[%emt 0:00:02]} Nd7 {[%emt 0:03:10]} 9. c4 {[%emt 0:00:08]} e6 {[%emt 0:00:00]} 10. O-O {[%emt 0:00:19]} Be7 {[%emt 0:00:00]} 11. Rc1 {[%emt 0:00:05]} O-O {[%emt 0:00:00]} 12. cxd5 {[%emt 0:00:07]} exd5 {[%emt 0:00:00]} 13. dxc5 {[%emt 0:00:02]} Nxc5 {[%emt 0:00:00]} 14. Nb3 {[%emt 0:00:02]} Qb6 {[%emt 0:00:00]} 15. Bxc6 {[%emt 0:00:12]} bxc6 {[%emt 0:00:00]} 16. Nxc5 {[%emt 0:00:05]} Bxc5 {[%emt 0:00:00]} 17. Bc7 {[%emt 0:00:29]} Qb5 {[%emt 0:00:00]} 18. Nd4 {[%emt 0:00:28]} Bxd4 {[%emt 0:00:00]} 19. Qxd4 {[%emt 0:00:02]} Rfc8 {[%emt 0:00:00]} 20. Bd6 {[%emt 0:00:09]} a5 {[%emt 0:00:00]} 21. Rc5 {[%emt 0:00:07]} Qe2 {[%emt 0:00:00]} (21... Qd3 {simplifies} 22. Re1 a4 23. h4 Qxd4 24. exd4 f6) 22. Rfc1 {[%emt 0:00:34]} h5 {[%emt 0:00:00]} 23. gxh5 {[%emt 0:00:13]} (23. Rxc6 $2 Rxc6 24. Rxc6 Be4 $19) 23... Be4 {[%emt 0:00:00]} (23... Qxh5 $11 24. Qg4 Qxg4+ 25. hxg4 d4) 24. Qd1 {[%emt 0:00:01]} (24. Rxc6 Rxc6 25. Ra1 Qf3 (25... Rxd6 $2 26. Qd1 $19) (25... Rxd6 $2 26. Qd1 $19)) 24... Qxb2 {[%emt 0:00:00]} 25. Qg4 {[%emt 0:00:07]} Kh7 {[%emt 0:00:00]} (25... Re8 $11) 26. a3 {[%emt 0:00:05]} ({White should try} 26. f3 $14 Bd3 27. R5c3) 26... a4 {[%emt 0:00:00]} (26... Re8 $11 {keeps the balance.}) 27. R5c3 $16 {[%emt 0:00:03]} Re8 {[%emt 0:00:00]} 28. f3 {[%emt 0:00:07]} (28. Rxc6 d4 29. R6c4 (29. exd4 $2 Bxc6 30. Rxc6 Re1+ 31. Kg2 Qb5 $17) 29... dxe3 30. fxe3 Bd3 $19) (28. Bc5 $1 $16 {[%cal Rc5d4]}) 28... Bd3 {[%emt 0:00:18]} (28... d4 $1 $11 29. exd4 Bd5) 29. Bf4 $2 {[%emt 0:00:03] [#]} (29. Bc5 $1 $14 {stays ahead.} Re6 30. Bd4) 29... Qe2 $2 {[%emt 0:00:06]} (29... d4 $1 $17 {[%cal Rd4c3]} 30. exd4 Re1+ 31. Rxe1 Qxc3) 30. Qg2 {[%emt 0:00:10]} ({White should play} 30. Rxc6 $14 Ra6 31. Rxa6 Bxa6 32. Qf5+ Kg8 33. h6) 30... Qxg2+ $11 {[%emt 0:00:04]} 31. Kxg2 {[%emt 0:00:14]} Bb5 32. Kf2 {[%emt 0:00:00]} Re6 {[%emt 0:00:04]} 33. Rg1 {[%emt 0:00:00]} Rae8 {[%emt 0:00:01]} 34. Rc5 {[%emt 0:00:00]} Rf6 {[%emt 0:00:02]} 35. Rg5 {[%emt 0:00:02]} d4 {[%emt 0:00:02]} 36. Be5 $2 {[%emt 0:00:03][%mdl 8192]} (36. Rcf5 $11 {and White stays safe.}) 36... dxe3+ $19 {[%emt 0:00:09]} 37. Kxe3 {[%emt 0:00:03] [#]} Rfe6 $1 {[%emt 0:00:01]} 38. Rxg7+ {[%emt 0:00:02]} Kh6 {[%emt 0:00:01]} 39. Kf4 {[%emt 0:00:03]} Rxe5 $1 {[%emt 0:00:02]} (39... Kxh5 40. Bb2+ (40. Rxf7 Kg6 $18) 40... Kh6 41. Rg4 $16 (41. Rxf7 Bd3 $18)) 40. Rxe5 {[%emt 0:00:01]} Rxe5 {[%emt 0:00:00]} 41. Rxf7 {[%emt 0:00:02]} Rxh5 {[%emt 0:00:04]} 42. Rf6+ {[%emt 0:00:01]} Kg7 {[%emt 0:00:00]} 43. Rd6 {[%emt 0:00:03]} Rxh3 {[%emt 0:00:02]} 44. Rd7+ {[%emt 0:00:01]} Kf6 {[%emt 0:00:01]} 45. Rd6+ {[%emt 0:00:01]} Ke7 {[%emt 0:00:00]} 46. Rd2 {[%emt 0:00:01]} Rh1 {[%emt 0:00:02]} 47. Ra2 {[%emt 0:00:02]} Kf6 {[%emt 0:00:01]} 48. Ke4 {[%emt 0:00:01]} Rb1 {[%emt 0:00:02]} 49. f4 {[%emt 0:00:02]} Rb3 {[%emt 0:00:01]} (49... Bc4 $142 50. Rd2 Bd5+ 51. Kd4 Rb3 52. Ra2 Ke6 53. Rh2 Rxa3 54. Rh6+ Kf5 55. Rh8 Rf3 (55... Kxf4 $2 56. Rf8+ Kg5 57. Rf1 $19) 56. Rf8+ Kg6 57. f5+ Kg5 (57... Rxf5 $2 58. Re8 $19) 58. Re8 a3 (58... Kxf5 $2 59. Kc5 $19) 59. Re1 a2 (59... Kxf5 {is a self mate.} 60. Re8 a2 61. Rf8+ Kg5 62. Ra8 Rf1 63. Kc3 a1=Q+ 64. Rxa1 Rxa1 65. Kd4 Kf4 66. Kc3 Ra3+ 67. Kd4 Rf3 68. Kc5 Ke5 69. Kb6 Rb3+ 70. Kc7 Ke6 71. Kd8 Kd6 72. Kc8 Be6+ 73. Kd8 Rb8#) 60. Kc5 Rb3 (60... Kxf5 61. Kd6 $19) 61. Rg1+ Kf6 (61... Kxf5 {gets mated.} 62. Rf1+ Ke5 63. Re1+ Be4 64. Ra1 Rb5+ 65. Kc4 Bd5+ 66. Kc3 Rb1 67. Rxa2 Bxa2 68. Kd3 Bd5 69. Kc3 Rb3+ 70. Kc2 Bc4 71. Kd2 Kd4 72. Kc2 Ke3 73. Kd1 Bd3 74. Ke1 Rb1#) 62. Ra1 Rb1 (62... Kxf5 63. Rf1+ Ke4 64. Re1+ Kd3 65. Rd1+ Kc3 66. Rc1+ Kb2 67. Re1 a1=Q 68. Rxa1 Rb5+ 69. Kd4 Kxa1 70. Ke5 Bg2+ 71. Kf4 c5 72. Kg4 Bb7 73. Kh5 c4+ 74. Kg6 c3 75. Kg7 c2 76. Kf8 c1=Q 77. Kf7 Rf5+ 78. Kg6 Qg5+ 79. Kh7 Rf7+ 80. Kh8 Qg7#) 63. Rxa2 Bxa2 64. Kd4 Kxf5 65. Kc5 Ke5 66. Kxc6 Rc1+ 67. Kb5 Kd6 68. Kb4 Bc4 69. Ka3 Rb1 70. Ka4 Bd5 71. Ka3 Kc5 72. Ka4 Ra1#) 50. Ra1 {[%emt 0:00:02]} Bc4 {[%emt 0:00:02]} 51. Kd4 {[%emt 0:00:01]} Bd5 {[%emt 0:00:03]} 52. Rg1 {[%emt 0:00:08]} Rxa3 {[%emt 0:00:01]} 53. Rc1 {[%emt 0:00:01]} Rb3 {[%emt 0:00:21]} 54. Ra1 {[%emt 0:00:02]} a3 {[%emt 0:00:00]} 55. Kc5 {[%emt 0:00:01]} Kf5 {[%emt 0:00:00]} 56. Rf1 {[%emt 0:00:02]} a2 {[%emt 0:00:00]} 0-1

[Event "Indian Blitz Championship 2023"]
[Site "Nashik"]
[Date "2024.03.07"]
[Round "6.1"]
[White "Mohammad Nubairshah Shaikh"]
[Black "Raja Rithvik R"]
[Result "1/2-1/2"]
[ECO "D73"]
[WhiteElo "2436"]
[BlackElo "2532"]
[Annotator "TA"]
[PlyCount "23"]
[EventDate "2024.03.07"]
[EventType "blitz"]
[EventCountry "IND"]
[SourceTitle "playchess.com"]
[Source "ChessBase"]
[SourceQuality "1"]
[TimeControl "180+2"]

{[%evp 18,23,0,0,1,0,6,0]} 1. Nf3 {[%emt 0:00:01]} d5 {[%emt 0:00:01]} 2. g3 {[%emt 0:00:01]} Nf6 {[%emt 0:00:05]} 3. Bg2 {[%emt 0:00:01]} c5 {[%emt 0:00:01]} 4. O-O {[%emt 0:00:02]} g6 {[%emt 0:00:01]} 5. c4 {[%emt 0:00:00]} Bg7 {[%emt 0:00:05]} 6. cxd5 {[%emt 0:00:03]} Nxd5 {[%emt 0:00:01]} 7. d4 {[%emt 0:00:00]} cxd4 {[%emt 0:00:04]} 8. Nxd4 {[%emt 0:00:02]} O-O {[%emt 0:00:03]} 9. Nb5 {[%emt 0:00:04]} Be6 {[%emt 0:00:10]} 10. Nd4 {[%emt 0:00:01] Die Stellung ist ausgeglichen.} Bc8 {[%emt 0:00:03]} 11. Nb5 {[%emt 0:00:00]} Be6 {[%emt 0:00:03]} 12. Nd4 {[%emt 0:03:11] Ein ziemlich ruhiges Remis.   Gewichteter Fehlerwert: Weiß=0.00 (makellos) /Schwarz=0.00 (makellos) .  OK:         	---       	Schwarz=1} 1/2-1/2